Cogmind - Beta 11 X7 @@@ ROGUE MODE // 2021.09.05 @ 19:11:12 Player: Runia Result: Destroyed by S-27 Virus with Autogun Performance ------------- Evolutions (3) 1500 Regions Visited (10) 2000 Robots Destroyed (170) 850 Value Destroyed (4789) 4789 Prototype IDs (17) 340 Alien Tech Used (0) 0 Bonus (705) 705 TOTAL SCORE: 10184 Bonus ------- High Alert Combat Kills 296 Follower Combat Kills 109 Met Data Miner 300 Cogmind --------- Core Integrity 0/700 Matter 280/300 Energy 76/100 System Corruption 5% Temperature Cool (0) Movement Core (50) Location -6/Proximity Caves Parts ------- > --- POWER (1) -------- (None) > --- PROPULSION (4) --- (None) > --- UTILITY (5) ------ Melee Analysis Suite Hacking Suite > --- WEAPON (3) ------- Spear > --- INVENTORY (5) ---- Improved Cooling System Advanced Terrain Scan Processor Improved Medium Armor Plating Chainsword Peak State ------------ > --- POWER ------------ Light Angular Momentum Engine > --- PROPULSION ------- Improved Titanium Leg Gravmag System Gravmag System Gravmag System > --- UTILITY ---------- Improved Signal Interpreter Advanced Terrain Scan Processor Advanced Targeting Computer Target Analyzer Transmission Jammer > --- WEAPON ----------- Chainsword Chainsword Chainsword > --- INVENTORY -------- Improved Cooling System Large Storage Unit Improved Weapon Shielding Improved Medium Armor Plating Heavy Particle Gun [Rating: 50] Favorites ----------- Power Heavy Ion Engine Engine Heavy Ion Engine Propulsion Improved Treads Treads Improved Treads Leg Improved Titanium Leg Wheel Wheel Hover Unit Gravmag System Utility High-capacity Storage Unit Device Transmission Jammer Storage High-capacity Storage Unit Processor Advanced Targeting Computer Hackware Hacking Suite Protection Medium Armor Plating Weapon Heavy Particle Gun Energy Gun Heavy Particle Gun Ballistic Gun Autogun Ballistic Cannon Improved Light Cannon Launcher Heavy Rocket Launcher Slashing Weapon Chainsword Piercing Weapon Spear Build | -11 -10 -9 -9 -8 -7 -7 -7 -7 -7 -6 ------- Run | Scr Mat Mat Min Mat Fac Was Fac Low Dat Pro Slots Evolved 6 | . . 2 . 2 2 . . . . . Power . | . . . . . . . . . . . Propulsion 2 | . . 1 . . 1 . . . . . Utility 3 | . . 1 . 1 1 . . . . . Weapon 1 | . . . . 1 . . . . . . Parts Attached 157 | . 12 28 2 37 34 5 28 . . 11 Power 14 | . 2 3 . 1 4 1 3 . . . Engine 14 | . 2 3 . 1 4 1 3 . . . Core . | . . . . . . . . . . . Reactor . | . . . . . . . . . . . Propulsion 33 | . 6 5 . 4 3 . 13 . . 2 Treads 19 | . 5 5 . 4 3 . 2 . . . Leg 8 | . 1 . . . . . 6 . . 1 Wheel 1 | . . . . . . . . . . 1 Hover 5 | . . . . . . . 5 . . . Flight . | . . . . . . . . . . . Utility 70 | . 2 15 . 13 25 2 7 . . 6 Device 32 | . . 6 . 7 15 . 2 . . 2 Storage 4 | . 1 1 . . 1 . . . . 1 Processor 7 | . . . . 1 1 1 2 . . 2 Hackware 7 | . . 2 . 1 3 . . . . 1 Protection 20 | . 1 6 . 4 5 1 3 . . . Artifact . | . . . . . . . . . . . Weapon 40 | . 2 5 2 19 2 2 5 . . 3 Energy Gun 18 | . . 3 1 12 1 . . . . 1 Energy Cannon . | . . . . . . . . . . . Ballistic Gun 7 | . 1 2 . 2 1 1 . . . . Ballistic Cannon 1 | . 1 . . . . . . . . . Launcher 6 | . . . 1 4 . 1 . . . . Special Weapon . | . . . . . . . . . . . Impact Weapon . | . . . . . . . . . . . Slashing Weapon 6 | . . . . 1 . . 5 . . . Piercing Weapon 2 | . . . . . . . . . . 2 Special Melee Weapon . | . . . . . . . . . . . Unidentified Prototypes 6 | . . 3 . 2 1 . . . . . Parts Lost 35 | . 1 3 . 10 3 7 3 . . 8 Power 3 | . 1 . . 1 . . . . . 1 Propulsion 14 | . . 1 . 2 1 3 3 . . 4 Utility 9 | . . 1 . 4 . 1 . . . 3 Weapon 9 | . . 1 . 3 2 3 . . . . Highest Loss Streak 7 | . 1 1 . 3 3 4 2 . . 7 Average Slot Usage (%) 92 | . 96 97 100 98 99 65 82 69 69 65 Engine 8 | . 14 11 11 8 7 4 6 7 7 4 Treads 21 | . 23 33 33 26 29 15 2 . . . Leg 1 | . 4 . . . . . 3 7 7 7 Hover 2 | . . . . . . . 14 7 7 4 Device 8 | . . 12 11 11 12 7 6 7 7 8 Storage 8 | . 14 11 11 9 7 5 . . . 4 Processor 6 | . . . . 1 14 12 24 7 7 4 Protection 6 | . 11 7 11 10 2 4 2 15 15 5 Energy Gun 9 | . . 7 5 21 22 4 . . . 3 Ballistic Gun 6 | . 21 10 11 4 . 6 . . . . Ballistic Cannon 2 | . 6 3 . . . . . . . . Slashing Weapon 3 | . . . . . . . 18 15 15 8 Naked Turns . | . . . . . . . . . . . Heaviest Build 70 | 12 40 63 63 70 68 69 39 25 25 43 Greatest Support 83 | 20 46 69 66 66 83 83 36 9 9 40 Greatest Overweight (x) 3 | . . . . 1 . 1 3 2 2 3 Average Overweight (x) . | . . . . . . . . 2 2 . Largest Inventory Capacity 20 | 8 15 20 20 20 20 20 5 5 5 15 Average Capacity 15 | 8 13 19 20 20 20 15 5 5 5 10 Most Carried 20 | 5 9 20 18 20 20 16 5 5 5 12 Average Carried 12 | 5 6 16 18 18 18 12 4 5 5 7 Final Capacity 20 | 8 15 20 20 20 20 5 5 5 5 5 Final Carried 18 | 4 9 18 18 17 15 5 5 5 5 4 Class Distribution -------------------- 49% | Mutant 16% | Scavenger-Mutant 14% | Tank 12% | Scavenger-Skirmisher 3% | Gunner 3% | Scavenger-Gunner Dominant Class ---------------- Mutant | -10/Materials Mutant | -9/Materials Mutant | -9/Mines Tank | -8/Materials Scavenger-Skirmisher | -7/Factory Mutant | -7/Waste Scavenger-Mutant | -7/Factory Scavenger-Mutant | -7/Lower Caves Mutant | -7/Data Miner Scavenger-Mutant | -6/Proximity Caves Resources | -11 -10 -9 -9 -8 -7 -7 -7 -7 -7 -6 ----------- Run | Scr Mat Mat Min Mat Fac Was Fac Low Dat Pro Matter Collected 3343 | 200 511 935 . 543 345 117 550 . . 142 Remotely . | . . . . . . . . . . . Salvage Created 6439 | . 742 1192 12 1920 1196 338 986 . . 53 Parts 361 | . 51 84 2 107 66 1 46 . . 4 Haulers Intercepted 11 | . 1 4 . 5 1 . . . . . Recyclers Shooed 3 | . 1 1 . 1 . . . . . . Parts Field Recycled . | . . . . . . . . . . . Retrieved Matter . | . . . . . . . . . . . Parts Self-Destructed 11 | . . . . . . . . . . 11 Prevented 7 | . . . . . . . . . . 7 Kills | -11 -10 -9 -9 -8 -7 -7 -7 -7 -7 -6 ------- Run | Scr Mat Mat Min Mat Fac Was Fac Low Dat Pro Combat Hostiles Destroyed 122 | . 15 27 3 40 18 2 16 . . 1 Melee 16 | . . . . . . . 16 . . . Guns 77 | . 9 20 . 29 18 . . . . 1 Cannons 13 | . 6 7 . . . . . . . . AOE 16 | . . . 3 11 . 2 . . . . Classes Destroyed 16 | . 6 4 . 2 1 1 1 . . 1 Worker 9 | . 3 2 . 2 1 . 1 . . . Builder 1 | . . 1 . . . . . . . . Tunneler 1 | . . . . 1 . . . . . . Hauler 11 | . 1 4 . 5 1 . . . . . Recycler 8 | . 1 1 . 2 1 . 3 . . . Minesweeper 1 | . . . . . . . . . . 1 Mechanic 2 | . . 1 . 1 . . . . . . Operator 4 | . . 2 . . 2 . . . . . Watcher 11 | . 3 3 . 1 4 . . . . . Swarmer 38 | . 2 15 3 13 . . 4 . . 1 Grunt 58 | . 13 7 . 19 12 . 7 . . . Sentry 15 | . . 5 . 7 1 . 2 . . . Hunter 1 | . . . . . . . 1 . . . Programmer 7 | . . . . . 5 . 2 . . . Heavy 1 | . . . . 1 . . . . . . Compactor 2 | . . . . . . 2 . . . . Best Kill Streak 5 | . 4 5 3 5 4 2 5 . . 1 Combat Bots Only 5 | . 3 4 3 4 4 2 5 . . 1 Max Kills in Single Turn 4 | . 2 2 2 4 1 1 1 . . 1 Gunslinging 1 | . . 1 . 1 . . . . . . Exploded 3 | . . . 2 3 . 1 . . . . Melee 1 | . . . . . . . 1 . . . Uniques/NPCs Destroyed . | . . . . . . . . . . . Combat | -11 -10 -9 -9 -8 -7 -7 -7 -7 -7 -6 -------- Run | Scr Mat Mat Min Mat Fac Was Fac Low Dat Pro Damage Taken 7139 | . 695 1136 7 1817 718 570 1198 . . 998 Core 1093 | . 114 82 . 195 34 141 225 . . 302 Absorbed by Shields . | . . . . . . . . . . . Core Remaining (%) 74 | 100 54 . 79 64 . . . . . . Volleys Fired 353 | . 63 102 2 102 59 22 . . . 3 Largest 3 | . 2 2 1 3 3 3 . . . 1 Hottest 177 | . 59 79 33 177 165 102 . . . 55 Shots Fired 807 | . 126 203 2 270 174 29 . . . 3 Gun 721 | . 107 164 . 263 174 10 . . . 3 Cannon 58 | . 19 39 . . . . . . . . Launcher 28 | . . . 2 7 . 19 . . . . Special . | . . . . . . . . . . . Kinetic 356 | . 126 141 . 73 6 10 . . . . Thermal 423 | . . 62 . 190 168 . . . . 3 Explosive 28 | . . . 2 7 . 19 . . . . Electromagnetic . | . . . . . . . . . . . Robot Hit Streak 20 | . 14 19 2 20 13 19 . . . 1 Robot Miss Streak 6 | . 6 5 1 4 2 2 . . . 3 Penetration Max 1 | . . . . . . 1 . . . . Secondary Targets 10 | . 2 3 . 4 1 . . . . . Max Gunslinging Chain 1 | . 1 1 . 1 1 . . . . . Shots Hit Robots 554 | . 80 115 1 169 116 25 44 . . 4 Core Hits 279 | . 36 49 3 96 57 13 23 . . 2 Critical Kills 1 | . . 1 . . . . . . . . Critical Parts Destroyed 1 | . . 1 . . . . . . . . Critical Strikes 27 | . . 6 . 11 5 1 4 . . . Burn 19 | . . 3 . 11 5 . . . . . Destroy 3 | . . 2 . . . 1 . . . . Blast 1 | . . 1 . . . . . . . . Sever 4 | . . . . . . . 4 . . . Melee Attacks 65 | . . . . 1 . . 59 . . 5 Impact . | . . . . . . . . . . . Slashing 60 | . . . . 1 . . 59 . . . Piercing 5 | . . . . . . . . . . 5 Sneak Attacks 9 | . . . . . . . 7 . . 2 Combat Hostiles . | . . . . . . . . . . . Follow-up Attacks 8 | . . . . . . . 8 . . . Damage Inflicted 13857 | . 1160 2037 206 3662 2331 2135 2084 . . 242 Guns 7713 | . 864 1597 . 2683 2331 219 . . . 19 Cannons 736 | . 296 440 . . . . . . . . Explosions 3101 | . . . 206 979 . 1916 . . . . Melee 2307 | . . . . . . . 2084 . . 223 Ramming . | . . . . . . . . . . . Kinetic 3296 | . 1160 1423 . 414 80 219 . . . . Thermal 5153 | . . 614 . 2269 2251 . . . . 19 Explosive 3101 | . . . 206 979 . 1916 . . . . Electromagnetic . | . . . . . . . . . . . Impact . | . . . . . . . . . . . Slashing 2084 | . . . . . . . 2084 . . . Piercing 223 | . . . . . . . . . . 223 Highest Corruption 5 | . . . . . 3 3 4 4 4 5 Average Corruption 3 | . . . . . 2 3 3 4 4 4 Corruption Purged . | . . . . . . . . . . . Effects 42 | . . . . . 9 1 19 1 1 11 Message Errors 12 | . . . . . 4 . 4 1 . 3 Matter Fused 12 | . . . . . 2 . 6 . 1 3 Heat Flow Errors 5 | . . . . . 1 . 3 . . 1 Energy Discharges 5 | . . . . . . . 2 . . 3 Parts Rejected 1 | . . . . . . . 1 . . . Data Loss (minor) 6 | . . . . . 1 1 3 . . 1 Weapon Failures 1 | . . . . . 1 . . . . . Overload Shots . | . . . . . . . . . . . Overflow Damage 367 | . . 14 . 26 . 8 278 . . 41 Projectiles 14 | . . 14 . . . . . . . . Explosions 34 | . . . . 26 . 8 . . . . Melee 319 | . . . . . . . 278 . . 41 Knockbacks 6 | . 3 3 . . . . . . . . Impact . | . . . . . . . . . . . Kinetic 6 | . 3 3 . . . . . . . . Secondary . | . . . . . . . . . . . Self-Inflicted Damage 435 | . . . . 68 . 367 . . . . Shots 11 | . . . . 4 . 7 . . . . Rammed . | . . . . . . . . . . . Targets Rammed . | . . . . . . . . . . . Kicked . | . . . . . . . . . . . Crushed . | . . . . . . . . . . . Highest Temperature 456 | . 72 140 . 425 456 81 197 . . 268 Average Temperature 93 | . 19 43 . 87 138 41 99 . . 132 Received Heat Transfer 2082 | . 339 231 . 783 282 . 258 . . 189 Effects 7 | . . . . 6 1 . . . . . Shutdowns 1 | . . . . 1 . . . . . . Interference 5 | . . . . 4 1 . . . . . Damage (minor) 1 | . . . . 1 . . . . . . Siege Activations . | . . . . . . . . . . . Robots Corrupted . | . . . . . . . . . . . Combat Hostiles . | . . . . . . . . . . . Parts Fried . | . . . . . . . . . . . Impact Corruptions . | . . . . . . . . . . . Robots Melted . | . . . . . . . . . . . Combat Hostiles . | . . . . . . . . . . . Parts Melted 25 | . . . . 12 13 . . . . . Heat Transferred 11759 | . . 1591 . 5543 4588 . . . . 37 Parts Sabotaged . | . . . . . . . . . . . Parts Stolen . | . . . . . . . . . . . Parts Stripped . | . . . . . . . . . . . Power Chain Reactions . | . . . . . . . . . . . Missiles Intercepted . | . . . . . . . . . . . Alert | -11 -10 -9 -9 -8 -7 -7 -7 -7 -7 -6 ------- Run | Scr Mat Mat Min Mat Fac Was Fac Low Dat Pro Peak Influence 755 | . 220 460 77 755 517 103 432 . . . Initial 343 | . . 15 7 29 343 64 32 . . . Average 254 | . 115 121 69 494 341 64 269 . . . Maximum Alert Level 3 | . 1 2 . 3 2 . 2 . . . Low Security (%) 44 | 100 83 76 100 13 14 100 13 . . . Level 1 34 | . 16 21 . 20 53 . 81 . . . Level 2 16 | . . 2 . 48 32 . 5 . . . Level 3 3 | . . . . 18 . . . . . . Level 4 . | . . . . . . . . . . . Level 5 . | . . . . . . . . . . . High Security . | . . . . . . . . . . . Max Security . | . . . . . . . . . . . Squads Dispatched 27 | . 4 5 . 7 6 . 4 . . 1 Investigation 9 | . 3 1 . 2 2 . 1 . . . Extermination 3 | . . . . . 2 . 1 . . . Reinforcement 12 | . 1 4 . 3 2 . 2 . . . Assault 2 | . . . . 1 . . . . . 1 Garrison 1 | . . . . 1 . . . . . . Intercept . | . . . . . . . . . . . Construction Impeded 1 | . . . . 1 . . . . . . Haulers Reinforced . | . . . . . . . . . . . Active Scanning Responses . | . . . . . . . . . . . Cargo Convoy Interrupts . | . . . . . . . . . . . Stealth | -11 -10 -9 -9 -8 -7 -7 -7 -7 -7 -6 --------- Run | Scr Mat Mat Min Mat Fac Was Fac Low Dat Pro Distress Signals 11 | . 1 3 . 4 3 . . . . . Communications Jammed 21 | . . . . 12 9 . . . . . Distress Signals 18 | . . . . 9 9 . . . . . Times Spotted 249 | . 28 49 18 57 27 6 26 . . 38 Peak Tracking Total 13 | . 5 6 13 6 3 4 5 . . 12 Tactical Retreats 20 | . 1 2 . 1 2 . 4 . . 10 Traps | -11 -10 -9 -9 -8 -7 -7 -7 -7 -7 -6 ------- Run | Scr Mat Mat Min Mat Fac Was Fac Low Dat Pro Traps Triggered 11 | . 3 . . 1 3 . 4 . . . Indirectly . | . . . . . . . . . . . Trap Hack Attempts . | . . . . . . . . . . . Triggered . | . . . . . . . . . . . Disarmed . | . . . . . . . . . . . Reprogrammed . | . . . . . . . . . . . Reused 7 | . . . . . . . . . . 7 Traps Extracted . | . . . . . . . . . . . Installed 8 | . . . . . . . . . . 8 Triggered 8 | . . . . . . . . 1 . 7 Machines | -11 -10 -9 -9 -8 -7 -7 -7 -7 -7 -6 ---------- Run | Scr Mat Mat Min Mat Fac Was Fac Low Dat Pro Machines Disabled 6 | . 1 2 . 3 . . . . . . Max in Single Turn 1 | . 1 1 . 1 . . . . . . Garrison Access 1 | . . . . . . . 1 . . . Machines Sabotaged . | . . . . . . . . . . . Garrisons Compromised . | . . . . . . . . . . . Overloaded Fab Kills . | . . . . . . . . . . . Fab Network Shutdowns . | . . . . . . . . . . . Hacking | -11 -10 -9 -9 -8 -7 -7 -7 -7 -7 -6 --------- Run | Scr Mat Mat Min Mat Fac Was Fac Low Dat Pro Machines Accessed 39 | . 5 8 . 4 8 . 10 . 4 . Terminals 22 | . 5 5 . 2 5 . 5 . . . Fabricators 3 | . . . . . 1 . 2 . . . Repair Stations 6 | . . 2 . . 2 . 2 . . . Recycling Units 1 | . . 1 . . . . . . . . Scanalyzers 1 | . . . . 1 . . . . . . Garrison Access 2 | . . . . 1 . . 1 . . . Total Hacks 121 | . 12 22 . 15 28 . 19 . 25 . Successful 62 | . 2 15 . 6 8 . 6 . 25 . Failed 59 | . 10 7 . 9 20 . 13 . . . Catastrophic 6 | . . . . . 3 . 3 . . . Database Lockouts . | . . . . . . . . . . . Manual 37 | . 4 13 . 6 9 . 5 . . . Terminals 62 | . 12 17 . 9 17 . 7 . . . Fabricators 8 | . . . . . 4 . 4 . . . Repair Stations 16 | . . 4 . . 7 . 5 . . . Recycling Units 1 | . . 1 . . . . . . . . Scanalyzers 3 | . . . . 3 . . . . . . Garrison Access 6 | . . . . 3 . . 3 . . . Terminal Hacks 42 | . 2 7 . 2 6 . . . 25 . Record 12 | . . . . 1 . . . . 11 . Part Schematic 6 | . . . . . . . . . 6 . Robot Schematic 5 | . . . . . . . . . 5 . Robot Analysis 2 | . . 1 . 1 . . . . . . Prototype ID Bank 3 | . . . . . . . . . 3 . Level Access Points 1 | . . . . . 1 . . . . . Branch Access Points 1 | . . . . . 1 . . . . . Alert Level 3 | . . 2 . . 1 . . . . . Unreport Threat 6 | . 1 3 . . 2 . . . . . Zone Layout 3 | . 1 1 . . 1 . . . . . Fabricator Hacks 2 | . . . . . . . 2 . . . Load Schematic 1 | . . . . . . . 1 . . . Build 1 | . . . . . . . 1 . . . Repair Station Hacks 8 | . . 4 . . 2 . 2 . . . Scan Component 5 | . . 2 . . 2 . 1 . . . Repair 3 | . . 2 . . . . 1 . . . Recycling Unit Hacks . | . . . . . . . . . . . Scanalyzer 3 | . . . . 3 . . . . . . Insert Component 2 | . . . . 2 . . . . . . Analyze 1 | . . . . 1 . . . . . . Garrison Access Hacks 1 | . . . . . . . 1 . . . Seal Access 1 | . . . . . . . 1 . . . Unauthorized Hacks 6 | . . 4 . 1 . . 1 . . . Terminals 4 | . . 3 . 1 . . . . . . Botnet 3 | . . 2 . 1 . . . . . . Operators 1 | . . 1 . . . . . . . . Fabricators 1 | . . . . . . . 1 . . . Haulers 1 | . . . . . . . 1 . . . Repair Stations . | . . . . . . . . . . . Recycling Units 1 | . . 1 . . . . . . . . Tunnel 1 | . . 1 . . . . . . . . Scanalyzers . | . . . . . . . . . . . Garrison Access . | . . . . . . . . . . . Data Cores Recovered . | . . . . . . . . . . . Used . | . . . . . . . . . . . Hacking Detections 32 | . 5 6 . 4 8 . 9 . . . Full Trace Events 4 | . . 1 . 1 1 . 1 . . . Feedback Events . | . . . . . . . . . . . Feedback Blocked . | . . . . . . . . . . . Robot Schematics Acquired 5 | . . . . . . . . . 5 . Robots Built . | . . . . . . . . . . . Matter . | . . . . . . . . . . . Time . | . . . . . . . . . . . Total Robot Build Rating . | . . . . . . . . . . . Part Schematics Acquired 7 | . . . . 1 . . . . 6 . Parts Built 1 | . . . . . . . 1 . . . Matter 168 | . . . . . . . 168 . . . Time 84 | . . . . . . . 84 . . . Total Part Build Rating 4 | . . . . . . . 4 . . . Parts Repaired 3 | . . 2 . . . . 1 . . . Time 86 | . . 64 . . . . 22 . . . Parts Recycled . | . . . . . . . . . . . Recycled Matter . | . . . . . . . . . . . Retrieved Matter . | . . . . . . . . . . . Retrieved Components . | . . . . . . . . . . . Parts Scanalyzed 1 | . . . . 1 . . . . . . Part Schematics Acquired 1 | . . . . 1 . . . . . . Parts Damaged . | . . . . . . . . . . . Bothacking | -11 -10 -9 -9 -8 -7 -7 -7 -7 -7 -6 ------------ Run | Scr Mat Mat Min Mat Fac Was Fac Low Dat Pro Used RIF Installer . | . . . . . . . . . . . Robots Hacked . | . . . . . . . . . . . Non-combat . | . . . . . . . . . . . Combat . | . . . . . . . . . . . Robot Hacks Applied . | . . . . . . . . . . . Relay Couplers Released . | . . . . . . . . . . . Robots Rewired . | . . . . . . . . . . . Allies Hacked . | . . . . . . . . . . . Hacks Repelled . | . . . . . . . . . . . Allies | -11 -10 -9 -9 -8 -7 -7 -7 -7 -7 -6 -------- Run | Scr Mat Mat Min Mat Fac Was Fac Low Dat Pro Total Allies 1 | . . . . . . . . . . 1 Largest Group 1 | . . . . . . . . . . 1 Highest-Rated Group 95 | . . . . . . . . . . 95 Highest-Rated Ally 95 | . . . . . . . . . . 95 Total Orders . | . . . . . . . . . . . Ally Attacks 14 | . . . . . . . . . . 14 Total Damage 323 | . . . . . . . . . . 323 Kills 4 | . . . . . . . . . . 4 Allies Corrupted . | . . . . . . . . . . . Allies Melted . | . . . . . . . . . . . Intel | -11 -10 -9 -9 -8 -7 -7 -7 -7 -7 -6 ------- Run | Scr Mat Mat Min Mat Fac Was Fac Low Dat Pro Robot Analysis Total 2 | . . 1 . 1 . . . . . . Derelict Logs Recovered 1 | . . . . . . . . . . 1 Drone Launches . | . . . . . . . . . . . Drone Recoveries . | . . . . . . . . . . . Exploration | -11 -10 -9 -9 -8 -7 -7 -7 -7 -7 -6 ------------- Run | Scr Mat Mat Min Mat Fac Was Fac Low Dat Pro Turns Passed 7879 | 1 1211 1931 25 1350 1307 137 1091 12 151 663 Spaces Moved 4355 | 1 621 925 12 443 560 93 1077 7 80 536 Core 474 | . . . . . . 71 142 . . 261 Treads 2480 | . 518 925 12 443 560 22 . . . . Legs 360 | 1 103 . . . . . 94 . . 162 Wheels 95 | . . . . . . . . . . 95 Hover 946 | . . . . . . . 841 7 80 18 Flight . | . . . . . . . . . . . Fastest Speed 50 | 120 120 160 160 160 162 50 50 190 190 50 Average Speed 132 | 120 153 160 160 211 162 85 64 190 190 103 Slowest Speed 280 | 120 160 160 160 265 165 265 250 190 190 280 Overloaded Moves . | . . . . . . . . . . . Propulsion Burnouts . | . . . . . . . . . . . Robots Hopped . | . . . . . . . . . . . Cave-ins Triggered . | . . . . . . . . . . . Exploration Rate (%) 43 | 2 93 69 11 50 23 74 29 3 69 60 Regions Visited 10 Branch Regions 4 Pre-discovered Areas 2 | . . 1 . . . . . . 1 . Known Exits Taken 1 | . . . . . . . 1 . . . Unknown Exits Taken 7 | 1 1 1 1 1 . . . 1 1 . Scrap Searched 1 | . . . . . . . . . . 1 Spaces Dug 2 | . . . . 1 . . 1 . . . Terrain Destroyed 198 | . 1 4 15 59 . 118 1 . . . Melee 2 | . . . . 1 . . 1 . . . Projectile 6 | . 1 4 . 1 . . . . . . AOE 190 | . . . 15 57 . 118 . . . . Terrain Rammed . | . . . . . . . . . . . Walls Destroyed . | . . . . . . . . . . . Machines Disabled . | . . . . . . . . . . . Actions | -11 -10 -9 -9 -8 -7 -7 -7 -7 -7 -6 --------- Run | Scr Mat Mat Min Mat Fac Was Fac Low Dat Pro Total 5687 | 2 756 1193 15 659 824 121 1392 6 79 640 Wait 589 | . 37 101 . 43 145 . 213 . . 50 Move 4346 | . 620 924 11 442 560 92 1076 6 79 536 Hop . | . . . . . . . . . . . Pick Up 86 | . 13 22 . 19 11 1 9 . . 11 Fast Attach 37 | . . 5 . 3 2 2 22 . . 3 Attach 50 | . 6 11 . 11 8 2 6 . . 6 Detach 5 | . . 1 . . . . 1 . . 3 Swap 70 | . 6 12 2 23 24 1 . . . 2 Drop 87 | 2 11 15 . 15 15 1 15 . . 13 Fire 353 | . 63 102 2 102 59 22 . . . 3 Melee 56 | . . . . 1 . . 50 . . 5 Ram . | . . . . . . . . . . . Kick . | . . . . . . . . . . . Crush . | . . . . . . . . . . . Escape Stasis . | . . . . . . . . . . . Rewire . | . . . . . . . . . . . Trap 8 | . . . . . . . . . . 8 Miscellaneous . | . . . . . . . . . . . Route ------- -11/Scrapyard -10/Materials (discovered 5 exits: *Mat x3 / [*Min x2]) -9/Materials (discovered 5 exits: *Mat x2 / [*Min x2] / [*Sto]) -9/Mines -8/Materials -7/Factory (discovered 6 exits: Fac x4 / Low x2) -7/Waste -7/Factory (discovered 3 exits: *Fac x2 / *Low) -7/Lower Caves -7/Data Miner -6/Proximity Caves History --------- Turn | Location | Event 2 | -11/Scrapyard | Discovered new exit (range 0) 2 | -11/Scrapyard | Entered Materials 267 | -10/Materials | Discovered new exit (range 4) 316 | -10/Materials | Build established: Mutant 380 | -10/Materials | Discovered new exit (range 13) 492 | -10/Materials | Discovered new exit (range 15) 751 | -10/Materials | Discovered new exit (range 15) 833 | -10/Materials | Discovered new exit (range 5) 1213 | -10/Materials | Entered another Materials area 1213 | -9/Materials | Evolved 2 slots: Propulsion x1, Utility x1 1301 | -9/Materials | Repaired Med. Armor Plating 1417 | -9/Materials | Repaired Med. Armor Plating 1452 | -9/Materials | Discovered new exit (range 16) 1641 | -9/Materials | Discovered new exit (range 12) 2115 | -9/Materials | Discovered new exit (range 8) 2669 | -9/Materials | Discovered new exit (range 16) 3138 | -9/Materials | Discovered new exit (range 16) 3144 | -9/Materials | Entered Mines 3151 | -9/Mines | Discovered new exit (range 10) 3154 | -9/Mines | Assembled infested the area 3159 | -9/Mines | Assisted by a Guerilla fighting off Assembled 3169 | -9/Mines | Entered Materials 3169 | -8/Materials | Evolved 2 slots: Utility x1, Weapon x1 3549 | -8/Materials | Build established: Tank 3857 | -8/Materials | Lost 3 parts (1u2w) 3990 | -8/Materials | Discovered new exit (range 16) 4369 | -8/Materials | First assault squad dispatched 4444 | -8/Materials | Garrison activated, responded to threat 4519 | -8/Materials | Entered Factory 4519 | -7/Factory | Evolved 2 slots: Propulsion x1, Utility x1 4901 | -7/Factory | Identified exit to Lower Caves 5579 | -7/Factory | Identified exit to Factory 5790 | -7/Factory | Lost 3 parts (1n2w) 5826 | -7/Factory | Sucked down chute 5826 | -7/Factory | Entered Waste 5849 | -7/Waste | Spotted C-40 Crusher 5856 | -7/Waste | Spotted C-40 Crusher 5860 | -7/Waste | Destroyed C-40 Crusher 5873 | -7/Waste | Crushed by Compactor (1 part destroyed, 1 dropped) 5876 | -7/Waste | Crushed by Compactor (1 part destroyed, 1 dropped) 5878 | -7/Waste | Destroyed C-40 Crusher 5898 | -7/Waste | Spotted C-40 Crusher 5907 | -7/Waste | Lost 4 parts (2n1u1w) 5912 | -7/Waste | Spotted C-40 Crusher 5915 | -7/Waste | Spotted C-40 Crusher 5918 | -7/Waste | Crushed by Compactor (1 part destroyed, 2 dropped) 5921 | -7/Waste | Crushed by Compactor (1 part destroyed, 1 dropped) 5924 | -7/Waste | Crushed by Compactor (1 part destroyed, 1 dropped) 5927 | -7/Waste | Spotted C-40 Crusher 5955 | -7/Waste | Lost 3 parts (1n2w) 5956 | -7/Waste | Discovered new exit (range 11) 5961 | -7/Waste | Identified exit to Factory 5963 | -7/Waste | Entered Factory 6330 | -7/Factory | Build established: Scavenger-Mutant 6331 | -7/Factory | Core integrity fell below 50% 6384 | -7/Factory | Discovered exit to Factory (range 16) 6428 | -7/Factory | Fabricated Imp. Medium Armor Plating (x1) 6480 | -7/Factory | Repaired Imp. Deuterium Engine 6774 | -7/Factory | Discovered exit to Factory (range 13) 6990 | -7/Factory | Discovered exit to Lower Caves (range 9) 7054 | -7/Factory | Entered Lower Caves 7055 | -7/Lower Caves | A Derelict revealed a hidden shortcut to meet someone special 7066 | -7/Lower Caves | Entered Data Miner 7066 | -7/Data Miner | Discovered new exit (range 6) 7103 | -7/Data Miner | Met Data Miner 7141 | -7/Data Miner | Learned location of Section 7 (-2) 7141 | -7/Data Miner | Acquired the access code to Warlord's prototype stash 7169 | -7/Data Miner | Received God Mode back door access code from Data Miner 7217 | -7/Data Miner | Entered Proximity Caves 7301 | -6/Proximity Caves | Escorted by Enhanced Grunt 7600 | -6/Proximity Caves | Attracted the attention of an 0b10 outpost 7647 | -6/Proximity Caves | Lost 7 parts (1p3n3u) 7724 | -6/Proximity Caves | Core integrity fell below 20% 7817 | -6/Proximity Caves | Learned Factory interactive machine intel 7880 | -6/Proximity Caves | Destroyed by S-27 Virus with Autogun Last Messages --------------- B-48 Gladiator heat short circuits Rnf. Deuterium Engine. ZDCGD71GQNSGAVU BZNG0 J::ECNAUBMLFL I-36 Angel heat spikes uncontrollably. Acquired derelict log, extracted data. Data stored: Factory interactive machine intel. Sneak attack on M-22 Extractor. Destroyed Wheel. Destroyed Imp. Datajack. System corrupted: Energy discharge (-39). Searching scrap... Found Melee Analysis Suite. Found Recalibrator. Found Hacking Suite. Found Terrain Scan Processor. Found 23 Matter. Acquired Hacking Suite. Acquired Melee Analysis Suite. Acquired 10 matter. Acquired Terrain Scan Processor. Discarded Terrain Scan Processor. Map ----- +----------------------------------------------------+ | ???????????????????????????????????????????????? | | ???????????????????????????????????????????????? | | ???????????????????????????????????????????????? | | ???????????????????????????????????????????????? | | ???????????????????????????????????????????????? | | ???????????????????????????????????????????????? | | ???????????????????????????????????????????????? | | #####?###??????????????????????????????????????? | | # ## ##?????????????????????????????????????? | | #?????????????????????????????????????? | | ##????????????????????????????????????? | | ####?????????????????????????????????? | | ??????????????????????????????????? | | ? ???????????????????????????????????? | | ??# #??? ???????????????????#???????????????? | | ?## ##???# #?????????????????? ##??????????????? | | ## ####?# #?????????????????? #??????????????? | | # #?# #????????????????? ???????????????? | | #?# #????????????????? ????????????????? | | ###%#???????????????? ?????????????????? | | ## #???????????????? ?????????????????? | | ### ##!###????????????? ??????????????????? | | ##?# ####?????????? ???????????????????? | | #??## ##???????? #???????????????????? | | ##??## ## ####?#### ####????????????????? | | ##??# ## ### @ #????????????????? | | #### ## ! #????????????????? | | ### #### sss! *%### #????????????????? | | ####??# ##!% #??? #????????????????? | | # # #????# ###### #????#????????????????? | | #???# ##???## ##?????????????????????? | | # # #### #????## #??????????????????????? | | # # #?????# #??????????????????????? | | # #?????## #??????????????????????? | | # ###### ???###??????????????????????? | | # #????### ????????????????????????????? | | #??????# ????????????????????????????? | | #????? ? ?????????????????????????????? | | # #????? ## ????????????????????????????????? | | # ??????????????????????????????????????? | | # ???????????????????????????????????? | | #### ####???????????????????????????????????? | | ????# #??????????????????????????????????????? | | ?????####??????????????????????????????????????? | | ???????????????????????????????????????????????? | | ???????????????????????????????????????????????? | | ???????????????????????????????????????????????? | | ???????????????????????????????????????????????? | | ???????????????????????????????????????????????? | | ???????????????????????????????????????????????? | +----------------------------------------------------+ Best States ------------- Heat Dissipation 61 Energy Generation 18 Energy Capacity 290 Matter Stores 300 Matter Capacity 300 Sight Range 16 Robot Scan Range 15 Terrain Scan Density 210 Jamming Range 8 Base Temperature (-) 100 Armor Coverage 600 Weapon Shielding 66 Evasion (%) 55 Targeting Accuracy 8 Melee Accuracy 5 Target Analysis 5 Recoil Reduction 4 Offensive Hacking 20 Defensive Hacking 10 Item Schematics ----------------- Imp. Medium Armor Plating | -8/Materials | Scanalyzed Combat Drone Bay | -7/Data Miner | Free Lgt. Regenerative Plating | -7/Data Miner | Free Cmb. Gravmag System | -7/Data Miner | Free Exp. Cesium-ion Thruster | -7/Data Miner | Free Exp. Sensor Array | -7/Data Miner | Free Exp. Terrain Scan Processor | -7/Data Miner | Free Robot Schematics ------------------ S-27 Virus | -7/Data Miner | Free G-50 Soldier | -7/Data Miner | Free H-66 Slayer | -7/Data Miner | Free P-70 Sage | -7/Data Miner | Free I-36 Angel | -7/Data Miner | Free Fabricated ------------ Imp. Medium Armor Plating | x1 | -7/Factory Alien Tech Used ----------------- None Achievements -------------- None Challenges ------------ None Game ------ Seed BlastMiniFacilitator Manual? 0 Play Time 01:05:54 Cumulative 301.4 hours Start 2021.09.05 @ 17:42:23 End 2021.09.05 @ 19:11:12 Sessions 1 Manual Loads 0 Difficulty Rogue Special Mode None Game No. 346 Rogue 346 Adventurer 0 Explorer 0 Win Type - Total 5 Types 5/0/0/0/0/0/0/0/0 Lore% 72 Gallery% 87 Achievement% 66 Wizard Run 0 Options --------- ASCII 0 Keyboard 0 Movement Mouse Keybinds 1 Fullscreen 2 Font 24/Smallcaps Map View 76x50 Tactical HUD 1 Map Filters NONE Filters NONE Steam 1 RUN: a4623460-df7d-43a4-8580-491f7809b04a